[Event "15th Governor Cup 2019"]
[Site "Khanty-Mansiysk"]
[Date "2019.11.22"]
[Round "5.17"]
[White "Chekletsov, Ilya"]
[Black "Yakimova, Mariya"]
[Result "1-0"]
[ECO "A90"]
[WhiteElo "2386"]
[BlackElo "2276"]
[Annotator "ChessBase"]
[PlyCount "81"]
[EventDate "2019.11.19"]
[EventType "swiss"]
[EventCountry "RUS"]
[SourceTitle "playchess.com"]
[Source "ChessBase"]
[SourceQuality "1"]
[TimeControl "5400+30"]

1. d4 {[%emt 0:00:00]} f5 {[%emt 0:00:00]} 2. c4 {[%emt 0:00:00]} Nf6 {[%emt 0:00:00]} 3. g3 {[%emt 0:00:00]} e6 {[%emt 0:00:00]} 4. Bg2 {[%emt 0:00:04]} d5 {[%emt 0:00:00]} 5. Nf3 {[%emt 0:00:06]} c6 {[%emt 0:00:03]} 6. O-O {[%emt 0:00:06]} Bd6 {[%emt 0:00:03]} 7. Qc2 {[%emt 0:00:31]} O-O {[%emt 0:00:06]} 8. Nc3 {[%emt 0:00:03]} Ne4 {[%emt 0:00:04]} 9. Rb1 {[%emt 0:00:05]} Nd7 {[%emt 0:00:04]} 10. b4 {[%emt 0:00:19]} b6 {[%emt 0:00:07]} 11. a4 {[%emt 0:19:12]} a5 {[%emt 0:05:26]} 12. b5 {[%emt 0:07:15]} Nxc3 {[%emt 0:03:44]} 13. Qxc3 {[%emt 0:00:59]} Bb7 {[%emt 0:04:30]} 14. bxc6 {[%emt 0:19:14]} Bxc6 {[%emt 0:00:12]} 15. Ng5 {[%emt 0:00:14]} Qe7 {[%emt 0:01:10]} 16. cxd5 {[%emt 0:00:36]} Bxd5 {[%emt 0:00:04]} 17. Bxd5 {[%emt 0:01:33]} exd5 {[%emt 0:00:05]} 18. Qc6 {[%emt 0:00:03]} Nf6 {[%emt 0:00:13]} 19. Rxb6 {[%emt 0:00:26]} Bb4 {[%emt 0:15:53]} 20. Qb5 {[%emt 0:08:19]} Rfe8 {[%emt 0:07:15]} 21. Be3 {[%emt 0:06:36]} Qd7 {[%emt 0:03:52]} 22. Qxd7 {[%emt 0:08:01]} Nxd7 {[%emt 0:00:07]} 23. Rc6 {[%emt 0:00:02]} Rab8 {[%emt 0:17:15]} 24. Bf4 {[%emt 0:11:24]} Rb7 {[%emt 0:00:05]} 25. e3 {[%emt 0:00:21]} h6 {[%emt 0:18:19]} 26. Nf3 {[%emt 0:00:36]} g5 {[%emt 0:06:31]} 27. Bc7 {[%emt 0:00:08]} Rc8 {[%emt 0:05:09]} 28. Rfc1 {[%emt 0:00:11]} Kh7 {[%emt 0:03:04]} 29. Kg2 {[%emt 0:00:49]} Kg8 {[%emt 0:02:19]} 30. R1c2 {[%emt 0:02:35]} Kh7 {[%emt 0:00:19]} 31. h3 {[%emt 0:02:49]} Kg8 {[%emt 0:01:14]} 32. h4 {[%emt 0:01:55]} g4 {[%emt 0:00:22]} 33. Ng1 {[%emt 0:00:12]} Kf7 {[%emt 0:01:28]} 34. Ne2 {[%emt 0:00:05]} Nf6 {[%emt 0:00:50]} 35. Nf4 {[%emt 0:00:15]} Ne4 {[%emt 0:03:22]} 36. Nxd5 {[%emt 0:01:03]} Be1 {[%emt 0:00:24]} 37. Nb6 {[%emt 0:00:33]} Re8 {[%emt 0:00:48]} 38. Be5 {[%emt 0:01:18]} Re6 {[%emt 0:03:14]} 39. Rxe6 {[%emt 0:00:48]} Kxe6 {[%emt 0:00:06]} 40. Rc6+ {[%emt 0:00:02]} Ke7 {[%emt 0:00:59]} 41. Rxh6 {[%emt 0:00:10]} 1-0

[Event "15th Governor Cup 2019"]
[Site "Khanty-Mansiysk"]
[Date "2019.11.22"]
[Round "5.18"]
[White "Skvortsov, Andrey"]
[Black "Mochalin, Faddey"]
[Result "0-1"]
[ECO "A13"]
[WhiteElo "2137"]
[BlackElo "2188"]
[Annotator "ChessBase"]
[PlyCount "78"]
[EventDate "2019.11.19"]
[EventType "swiss"]
[EventCountry "RUS"]
[SourceTitle "playchess.com"]
[Source "ChessBase"]
[SourceQuality "1"]
[TimeControl "5400+30"]

1. c4 {[%emt 0:00:00]} e6 {[%emt 0:00:00]} 2. Nf3 {[%emt 0:00:00]} d5 {[%emt 0:00:35]} 3. b3 {[%emt 0:00:02]} d4 {[%emt 0:05:18]} 4. g3 {[%emt 0:00:40]} Nc6 {[%emt 0:03:09]} 5. Bg2 {[%emt 0:00:15]} e5 {[%emt 0:01:18]} 6. d3 {[%emt 0:00:22]} Nf6 {[%emt 0:01:15]} 7. O-O {[%emt 0:00:22]} Bd6 {[%emt 0:02:06]} 8. e3 {[%emt 0:00:46]} dxe3 {[%emt 0:01:48]} 9. Bxe3 {[%emt 0:02:15]} O-O {[%emt 0:08:33]} 10. d4 {[%emt 0:01:00]} exd4 {[%emt 0:03:46]} 11. Nxd4 {[%emt 0:03:04]} Be5 {[%emt 0:01:58]} 12. Nxc6 {[%emt 0:07:18]} Qxd1 {[%emt 0:01:10]} 13. Ne7+ {[%emt 0:00:03]} Kh8 {[%emt 0:00:08]} 14. Rxd1 {[%emt 0:00:08]} Bxa1 {[%emt 0:00:07]} 15. Nxc8 {[%emt 0:00:00]} Raxc8 {[%emt 0:00:10]} 16. Bxb7 {[%emt 0:00:26]} Rcd8 {[%emt 0:00:41]} 17. Rd2 {[%emt 0:05:15]} Rxd2 {[%emt 0:06:27]} 18. Nxd2 {[%emt 0:00:11]} a5 {[%emt 0:08:32]} 19. Nf3 {[%emt 0:05:58]} Bc3 {[%emt 0:04:04]} 20. Bf4 {[%emt 0:00:34]} Re8 {[%emt 0:09:01]} 21. Kf1 {[%emt 0:00:59]} h6 {[%emt 0:01:30]} 22. h3 {[%emt 0:04:08]} Nh5 {[%emt 0:07:07]} 23. Bc1 {[%emt 0:00:06]} a4 {[%emt 0:02:45]} 24. c5 {[%emt 0:01:41]} axb3 {[%emt 0:02:03]} 25. axb3 {[%emt 0:00:04]} Nf6 {[%emt 0:07:02]} 26. Ba3 {[%emt 0:03:05]} Kg8 {[%emt 0:06:34]} 27. b4 {[%emt 0:01:22]} Ne4 {[%emt 0:08:29]} 28. Bc6 {[%emt 0:00:18]} Re6 {[%emt 0:00:50]} 29. b5 {[%emt 0:01:57]} Nd2+ {[%emt 0:04:23]} 30. Kg2 {[%emt 0:04:13]} Nxf3 {[%emt 0:00:34]} 31. Bxf3 {[%emt 0:00:26]} Bd4 {[%emt 0:02:49]} 32. Bg4 {[%emt 0:03:09]} f5 {[%emt 0:01:16]} 33. Bxf5 {[%emt 0:00:43]} Rf6 {[%emt 0:00:30]} 34. g4 {[%emt 0:00:27]} g6 {[%emt 0:00:23]} 35. Be4 {[%emt 0:04:13]} Rxf2+ {[%emt 0:00:07]} 36. Kg3 {[%emt 0:00:01]} Re2 {[%emt 0:00:51]} 37. Bd5+ {[%emt 0:00:54]} Kg7 {[%emt 0:00:21]} 38. b6 {[%emt 0:01:32]} cxb6 {[%emt 0:00:16]} 39. cxb6 {[%emt 0:00:07]} Re3+ {[%emt 0:00:26]} 0-1

[Event "15th Governor Cup 2019"]
[Site "Khanty-Mansiysk"]
[Date "2019.11.22"]
[Round "5.19"]
[White "Ryabov, Georgi"]
[Black "Belyakov, Bogdan"]
[Result "0-1"]
[ECO "A36"]
[WhiteElo "1887"]
[BlackElo "2495"]
[Annotator "ChessBase"]
[PlyCount "78"]
[EventDate "2019.11.19"]
[EventType "swiss"]
[EventCountry "RUS"]
[SourceTitle "playchess.com"]
[Source "ChessBase"]
[SourceQuality "1"]
[TimeControl "5400+30"]

1. c4 {[%emt 0:00:00]} c5 {[%emt 0:00:00]} 2. g3 {[%emt 0:00:00]} Nc6 {[%emt 0:00:00]} 3. Bg2 {[%emt 0:00:03]} g6 {[%emt 0:00:00]} 4. Nc3 {[%emt 0:00:19]} Bg7 {[%emt 0:00:00]} 5. d3 {[%emt 0:00:06]} e6 {[%emt 0:02:55]} 6. e4 {[%emt 0:00:38]} Nge7 {[%emt 0:00:20]} 7. Nge2 {[%emt 0:00:12]} O-O {[%emt 0:00:22]} 8. O-O {[%emt 0:00:10]} d6 {[%emt 0:01:46]} 9. f4 {[%emt 0:00:12]} Rb8 {[%emt 0:01:52]} 10. h3 {[%emt 0:03:16]} a6 {[%emt 0:00:14]} 11. a4 {[%emt 0:00:19]} Nd4 {[%emt 0:05:42]} 12. Be3 {[%emt 0:03:14]} Nec6 {[%emt 0:03:07]} 13. Kh2 {[%emt 0:02:16]} Qb6 {[%emt 0:05:52]} 14. Rb1 {[%emt 0:03:57]} Qb3 {[%emt 0:08:49]} 15. Rf2 {[%emt 0:05:43]} Qxd1 {[%emt 0:03:40]} 16. Rxd1 {[%emt 0:01:33]} Bd7 {[%emt 0:00:54]} 17. Rb1 {[%emt 0:07:46]} Nc2 {[%emt 0:04:51]} 18. Bd2 {[%emt 0:04:18]} N6b4 {[%emt 0:00:31]} 19. Nc1 {[%emt 0:00:37]} Nd4 {[%emt 0:00:27]} 20. N3a2 {[%emt 0:01:10]} Nxa2 {[%emt 0:00:30]} 21. Nxa2 {[%emt 0:00:11]} Bxa4 {[%emt 0:00:03]} 22. Bf1 {[%emt 0:01:03]} b5 {[%emt 0:01:38]} 23. Bc3 {[%emt 0:03:10]} b4 {[%emt 0:03:57]} 24. Bxd4 {[%emt 0:02:33]} Bxd4 {[%emt 0:00:07]} 25. Rg2 {[%emt 0:00:10]} a5 {[%emt 0:01:49]} 26. Nc1 {[%emt 0:01:22]} Ra8 {[%emt 0:04:40]} 27. Ra1 {[%emt 0:01:51]} Bc6 {[%emt 0:00:11]} 28. Nb3 {[%emt 0:00:07]} a4 {[%emt 0:00:03]} 29. Nxd4 {[%emt 0:00:06]} cxd4 {[%emt 0:00:02]} 30. Rf2 {[%emt 0:00:27]} Rfb8 {[%emt 0:00:43]} 31. Bg2 {[%emt 0:00:30]} Ra5 {[%emt 0:01:12]} 32. Bf3 {[%emt 0:00:24]} Kg7 {[%emt 0:00:44]} 33. Ra2 {[%emt 0:01:27]} h6 {[%emt 0:02:34]} 34. Bd1 {[%emt 0:01:01]} f5 {[%emt 0:01:48]} 35. Bf3 {[%emt 0:04:42]} b3 {[%emt 0:03:03]} 36. Ra3 {[%emt 0:00:14]} fxe4 {[%emt 0:00:15]} 37. Bxe4 {[%emt 0:02:26]} Bxe4 {[%emt 0:00:21]} 38. dxe4 {[%emt 0:00:05]} Rb4 {[%emt 0:00:05]} 39. Rf3 {[%emt 0:00:08]} Rc5 {[%emt 0:00:20]} 0-1

[Event "15th Governor Cup 2019"]
[Site "Khanty-Mansiysk"]
[Date "2019.11.22"]
[Round "5.20"]
[White "Dorofeeva, Nyurguiaana"]
[Black "Semenova, Elena"]
[Result "0-1"]
[ECO "A09"]
[WhiteElo "1848"]
[BlackElo "2282"]
[Annotator "ChessBase"]
[PlyCount "42"]
[EventDate "2019.11.19"]
[EventType "swiss"]
[EventCountry "RUS"]
[SourceTitle "playchess.com"]
[Source "ChessBase"]
[SourceQuality "1"]
[TimeControl "5400+30"]

1. Nf3 {[%emt 0:00:00]} d5 {[%emt 0:00:00]} 2. c4 {[%emt 0:00:00]} d4 {[%emt 0:00:24]} 3. b4 {[%emt 0:00:22]} g6 {[%emt 0:03:15]} 4. Bb2 {[%emt 0:00:55]} Bg7 {[%emt 0:00:29]} 5. e3 {[%emt 0:03:56]} e5 {[%emt 0:00:44]} 6. Qa4+ {[%emt 0:06:23]} Bd7 {[%emt 0:06:24]} 7. Qa3 {[%emt 0:00:33]} Bf5 {[%emt 0:02:09]} 8. exd4 {[%emt 0:08:46]} e4 {[%emt 0:09:09]} 9. d5 {[%emt 0:08:57]} Bxb2 {[%emt 0:13:27]} 10. Qxb2 {[%emt 0:00:09]} exf3 {[%emt 0:03:50]} 11. Qxh8 {[%emt 0:03:43]} Qe7+ {[%emt 0:00:04]} 12. Kd1 {[%emt 0:00:11]} Kf8 {[%emt 0:00:27]} 13. Qc3 {[%emt 0:06:29]} Na6 {[%emt 0:12:27]} 14. a3 {[%emt 0:04:33]} Re8 {[%emt 0:02:50]} 15. Bd3 {[%emt 0:14:46]} fxg2 {[%emt 0:08:30]} 16. Rg1 {[%emt 0:00:05]} Qg5 {[%emt 0:13:27]} 17. Bxf5 {[%emt 0:03:15]} Qh5+ 18. Bg4 Qxh2 {[%emt 0:08:38]} 19. Rxg2 {[%emt 0:12:09]} Qxg2 {[%emt 0:00:06]} 20. Bf3 {[%emt 0:06:31]} Qxf2 {[%emt 0:00:20]} 21. d4 {[%emt 0:01:07]} Re3 {[%emt 0:00:43]} 0-1

[Event "15th Governor Cup 2019"]
[Site "Khanty-Mansiysk"]
[Date "2019.11.22"]
[Round "5.21"]
[White "Voskresenskaya, Marta"]
[Black "Mukhina, Jana"]
[Result "0-1"]
[ECO "D02"]
[WhiteElo "1859"]
[BlackElo "2105"]
[Annotator "ChessBase"]
[PlyCount "62"]
[EventDate "2019.11.19"]
[EventType "swiss"]
[EventCountry "RUS"]
[SourceTitle "playchess.com"]
[Source "ChessBase"]
[SourceQuality "1"]
[TimeControl "5400+30"]

1. d4 {[%emt 0:00:00]} d5 {[%emt 0:00:00]} 2. Nf3 {[%emt 0:00:00]} Nc6 {[%emt 0:00:00]} 3. c4 {[%emt 0:01:52]} Bg4 {[%emt 0:00:07]} 4. e3 {[%emt 0:00:48]} e5 {[%emt 0:04:55]} 5. Be2 {[%emt 0:10:03]} exd4 {[%emt 0:05:28]} 6. Nxd4 {[%emt 0:01:57]} Bxe2 {[%emt 0:00:19]} 7. Nxe2 {[%emt 0:01:51]} dxc4 {[%emt 0:01:55]} 8. Qa4 {[%emt 0:00:12]} Qd5 {[%emt 0:14:43]} 9. O-O {[%emt 0:02:12]} O-O-O {[%emt 0:04:38]} 10. Nd2 {[%emt 0:10:06]} Bb4 {[%emt 0:02:35]} 11. Nc3 {[%emt 0:05:05]} Qa5 {[%emt 0:02:15]} 12. Qc2 {[%emt 0:02:33]} Ne5 {[%emt 0:06:44]} 13. f4 {[%emt 0:02:17]} Bxc3 {[%emt 0:01:48]} 14. Qxc3 {[%emt 0:02:40]} Qxc3 {[%emt 0:00:25]} 15. bxc3 {[%emt 0:00:02]} Nd3 {[%emt 0:01:59]} 16. Nxc4 {[%emt 0:00:11]} Nf6 {[%emt 0:00:08]} 17. Rb1 {[%emt 0:02:39]} Ne4 {[%emt 0:00:43]} 18. Rb3 {[%emt 0:00:25]} Rhe8 {[%emt 0:10:19]} 19. Ba3 {[%emt 0:04:48]} a6 {[%emt 0:01:40]} 20. Rd1 {[%emt 0:02:58]} Nxf4 {[%emt 0:10:02]} 21. Nd6+ {[%emt 0:01:06]} Nxd6 {[%emt 0:01:34]} 22. exf4 {[%emt 0:00:03]} Nc4 {[%emt 0:01:01]} 23. Rxd8+ {[%emt 0:02:06]} Rxd8 {[%emt 0:00:08]} 24. Bc5 {[%emt 0:01:23]} Rd1+ {[%emt 0:00:25]} 25. Kf2 {[%emt 0:00:02]} Rd2+ {[%emt 0:00:08]} 26. Kg3 {[%emt 0:01:37]} Rd3+ {[%emt 0:02:09]} 27. Kg4 {[%emt 0:01:17]} Rd2 {[%emt 0:02:12]} 28. Kg3 {[%emt 0:00:04]} Rxa2 {[%emt 0:00:15]} 29. Rb4 {[%emt 0:00:07]} Nd2 {[%emt 0:03:45]} 30. Rd4 {[%emt 0:00:05]} Nb3 {[%emt 0:01:00]} 31. Rd5 {[%emt 0:00:22]} Ra5 {[%emt 0:00:35]} 0-1

[Event "15th Governor Cup 2019"]
[Site "Khanty-Mansiysk"]
[Date "2019.11.22"]
[Round "5.22"]
[White "Mironenko, Galina"]
[Black "Kochukova, Anna"]
[Result "1/2-1/2"]
[ECO "B40"]
[WhiteElo "2236"]
[BlackElo "2117"]
[Annotator "NA"]
[PlyCount "153"]
[EventDate "2019.11.19"]
[EventType "swiss"]
[EventCountry "RUS"]
[SourceTitle "playchess.com"]
[Source "ChessBase"]
[SourceQuality "1"]
[TimeControl "5400+30"]

1. e4 {[%emt 0:00:00]} c5 {[%emt 0:00:00]} 2. Nf3 {[%emt 0:00:00]} e6 {[%emt 0:00:00]} 3. g3 {[%emt 0:00:00]} Nc6 {[%emt 0:00:13]} 4. Bg2 {[%emt 0:00:00]} g6 {[%emt 0:00:09]} 5. d4 {[%emt 0:00:55]} cxd4 {[%emt 0:01:01]} 6. Nxd4 {[%emt 0:00:11]} a6 {[%emt 0:00:33]} 7. Nc3 {[%emt 0:04:49]} Bg7 {[%emt 0:01:01]} 8. Be3 {[%emt 0:01:06]} Nge7 {[%emt 0:04:55]} 9. O-O {[%emt 0:03:26]} O-O {[%emt 0:02:12]} 10. Nde2 {[%emt 0:07:12]} d6 {[%emt 0:09:26]} 11. Qc1 {[%emt 0:11:30]} b5 {[%emt 0:05:21]} 12. Rd1 {[%emt 0:06:33]} Qc7 {[%emt 0:01:14]} 13. a3 {[%emt 0:02:38]} Rd8 {[%emt 0:08:18]} 14. Bg5 {[%emt 0:05:15]} Bb7 {[%emt 0:02:37]} 15. h4 {[%emt 0:02:16]} h5 $15 {[%emt 0:06:23]} 16. Bh6 {[%emt 0:07:19]} Bh8 {[%emt 0:02:18]} 17. Nf4 {[%emt 0:05:46]} Ne5 {[%emt 0:03:16]} 18. Nce2 {[%emt 0:08:18]} Rdc8 {[%emt 0:05:11]} 19. c3 {[%emt 0:08:08]} Ng4 {[%emt 0:03:56]} 20. Nh3 {[%emt 0:00:50]} Nxh6 {[%emt 0:03:51]} 21. Qxh6 {[%emt 0:00:07]} Bg7 {[%emt 0:00:13]} 22. Qf4 {[%emt 0:00:20]} d5 {[%emt 0:02:19]} 23. exd5 {[%emt 0:01:46]} Nxd5 {[%emt 0:00:48]} 24. Qxc7 {[%emt 0:02:21]} Rxc7 {[%emt 0:00:06]} 25. Nhf4 {[%emt 0:00:23]} Nb6 {[%emt 0:05:42]} 26. Bxb7 {[%emt 0:01:16]} Rxb7 {[%emt 0:00:01]} 27. Nd3 {[%emt 0:00:56]} Rc8 {[%emt 0:01:10]} 28. Kf1 {[%emt 0:04:01]} Kf8 {[%emt 0:02:56]} 29. Nd4 {[%emt 0:02:52]} Bxd4 {[%emt 0:03:01]} 30. cxd4 {[%emt 0:00:05]} a5 {[%emt 0:00:33]} 31. b3 {[%emt 0:04:39]} Nd5 {[%emt 0:06:30]} 32. Rac1 {[%emt 0:01:29]} Rbc7 {[%emt 0:00:50]} 33. Rxc7 {[%emt 0:02:34]} Rxc7 {[%emt 0:00:06]} 34. Rc1 {[%emt 0:01:46]} Rxc1+ {[%emt 0:02:21]} 35. Nxc1 {[%emt 0:00:05]} Nc3 {[%emt 0:00:11]} 36. Ke1 {[%emt 0:02:07]} a4 {[%emt 0:03:09]} 37. Kd2 {[%emt 0:01:40]} Ne4+ {[%emt 0:01:54]} 38. Ke3 {[%emt 0:00:23]} axb3 {[%emt 0:00:25]} 39. Nxb3 {[%emt 0:00:31]} Nd6 {[%emt 0:02:32]} 40. Nd2 {[%emt 0:00:31]} Ke7 {[%emt 0:01:26]} 41. Kd3 {[%emt 0:01:28]} Kd7 {[%emt 0:00:23]} 42. Nb1 {[%emt 0:01:50]} Kc6 {[%emt 0:01:14]} 43. Nd2 {[%emt 0:01:08]} Kb6 {[%emt 0:02:31]} 44. Kc3 {[%emt 0:00:44]} Ka5 {[%emt 0:00:30]} 45. Kb3 {[%emt 0:00:29]} Nf5 {[%emt 0:00:40]} 46. Nf3 {[%emt 0:00:38]} f6 {[%emt 0:00:02]} 47. Kc3 {[%emt 0:00:33]} Ka4 {[%emt 0:02:58]} 48. Kb2 {[%emt 0:00:21]} Nd6 {[%emt 0:00:02]} 49. Nd2 {[%emt 0:00:29]} g5 {[%emt 0:00:03]} 50. f3 {[%emt 0:00:42]} gxh4 {[%emt 0:02:21]} 51. gxh4 {[%emt 0:00:05]} Nf5 {[%emt 0:00:11]} 52. Ne4 {[%emt 0:00:19]} Nxh4 {[%emt 0:00:12]} 53. Nxf6 {[%emt 0:00:27]} Nxf3 {[%emt 0:00:04]} 54. Nxh5 {[%emt 0:00:09]} Nxd4 {[%emt 0:00:07]} 55. Nf4 {[%emt 0:00:45]} e5 {[%emt 0:01:01]} 56. Nd3 {[%emt 0:00:10]} Nc6 {[%emt 0:00:34]} 57. Nc5+ {[%emt 0:00:42]} Ka5 {[%emt 0:00:01]} 58. Kb3 {[%emt 0:00:32]} Kb6 {[%emt 0:03:37]} 59. Nd7+ {[%emt 0:00:14]} Ka5 {[%emt 0:00:13]} 60. Nc5 {[%emt 0:00:10]} Nd4+ {[%emt 0:00:49]} 61. Kc3 {[%emt 0:00:48]} Nf5 {[%emt 0:00:43]} 62. Kb3 {[%emt 0:00:50]} Ne7 {[%emt 0:02:39]} 63. a4 {[%emt 0:00:44]} b4 {[%emt 0:00:22]} 64. Nb7+ {[%emt 0:01:00]} Kb6 {[%emt 0:00:31]} 65. Nd6 {[%emt 0:00:26]} Nc6 {[%emt 0:00:32]} 66. Ne4 {[%emt 0:00:27]} Kc7 {[%emt 0:01:28]} 67. Kc4 {[%emt 0:00:22]} Kb6 {[%emt 0:00:21]} 68. Kb3 {[%emt 0:00:09]} Ka5 {[%emt 0:00:07]} 69. Nc5 {[%emt 0:00:32]} Nd4+ {[%emt 0:00:29]} 70. Kc4 {[%emt 0:00:33]} Nf3 {[%emt 0:00:30]} 71. Kb3 {[%emt 0:00:56]} Nd2+ {[%emt 0:00:45]} 72. Kc2 {[%emt 0:00:24]} Nc4 {[%emt 0:00:19]} 73. Kb3 {[%emt 0:00:25]} Nd2+ {[%emt 0:00:28]} 74. Kc2 {[%emt 0:00:05]} Nf3 {[%emt 0:00:02]} 75. Kb3 {[%emt 0:00:13]} Ne1 {[%emt 0:00:41]} 76. Kc4 {[%emt 0:01:11]} Nf3 {[%emt 0:00:33]} 77. Kb3 {[%emt 0:00:04]} 1/2-1/2

[Event "15th Governor Cup 2019"]
[Site "Khanty-Mansiysk"]
[Date "2019.11.22"]
[Round "6.4"]
[White "Goganov, Aleksey"]
[Black "Bocharov, Ivan"]
[Result "1-0"]
[ECO "E15"]
[WhiteElo "2565"]
[BlackElo "2571"]
[Annotator "ChessBase"]
[PlyCount "95"]
[EventDate "2019.11.19"]
[EventType "swiss"]
[EventCountry "RUS"]
[SourceTitle "playchess.com"]
[Source "ChessBase"]
[SourceQuality "1"]
[TimeControl "5400+30"]

1. d4 {[%emt 0:06:10]} Nf6 {[%emt 0:00:00]} 2. c4 {[%emt 0:00:05]} e6 {[%emt 0:00:00]} 3. Nf3 {[%emt 0:00:14]} b6 {[%emt 0:00:10]} 4. g3 {[%emt 0:00:08]} Ba6 {[%emt 0:00:15]} 5. Qc2 {[%emt 0:03:15]} c5 {[%emt 0:01:28]} 6. d5 {[%emt 0:00:15]} exd5 {[%emt 0:00:30]} 7. cxd5 {[%emt 0:00:26]} Bb7 {[%emt 0:00:29]} 8. Bg2 {[%emt 0:00:11]} Nxd5 {[%emt 0:00:19]} 9. O-O {[%emt 0:00:11]} Nc6 {[%emt 0:03:25]} 10. Rd1 {[%emt 0:01:54]} Be7 {[%emt 0:00:14]} 11. a3 {[%emt 0:01:36]} Nc7 {[%emt 0:04:23]} 12. Nc3 {[%emt 0:02:29]} O-O {[%emt 0:00:30]} 13. Bf4 {[%emt 0:00:37]} Re8 {[%emt 0:05:03]} 14. Rd2 {[%emt 0:06:16]} Ne6 {[%emt 0:02:16]} 15. Rad1 {[%emt 0:06:37]} Nxf4 {[%emt 0:06:09]} 16. gxf4 {[%emt 0:01:29]} d6 {[%emt 0:00:53]} 17. Ne4 {[%emt 0:19:14]} Qd7 {[%emt 0:04:42]} 18. Nxd6 {[%emt 0:05:24]} Bxd6 {[%emt 0:03:02]} 19. Rxd6 {[%emt 0:00:06]} Qg4 {[%emt 0:04:40]} 20. h3 {[%emt 0:01:48]} Qh5 {[%emt 0:00:25]} 21. R1d5 {[%emt 0:14:40]} Nb4 {[%emt 0:00:19]} 22. Rxh5 {[%emt 0:01:11]} Nxc2 {[%emt 0:00:02]} 23. Rd2 {[%emt 0:02:21]} Na1 {[%emt 0:02:22]} 24. Re5 {[%emt 0:05:05]} f6 {[%emt 0:18:54]} 25. Rxe8+ {[%emt 0:00:39]} Rxe8 {[%emt 0:00:01]} 26. Rd7 {[%emt 0:02:04]} Bc6 {[%emt 0:01:15]} 27. Rc7 {[%emt 0:00:32]} Bd5 {[%emt 0:00:52]} 28. e3 {[%emt 0:01:24]} a5 {[%emt 0:00:40]} 29. Nh4 {[%emt 0:01:51]} Bxg2 {[%emt 0:00:20]} 30. Kxg2 {[%emt 0:00:06]} g6 {[%emt 0:03:54]} 31. Rc6 {[%emt 0:00:10]} Kf7 {[%emt 0:04:42]} 32. Rxb6 {[%emt 0:00:29]} a4 {[%emt 0:00:01]} 33. Nf3 {[%emt 0:01:41]} Rd8 {[%emt 0:02:24]} 34. e4 {[%emt 0:04:20]} Nb3 {[%emt 0:00:02]} 35. Ra6 {[%emt 0:02:08]} Nc1 {[%emt 0:02:55]} 36. e5 {[%emt 0:00:16]} Nd3 {[%emt 0:00:29]} 37. Rxf6+ {[%emt 0:00:13]} Ke8 {[%emt 0:00:46]} 38. Ng5 {[%emt 0:00:58]} Rb8 {[%emt 0:00:10]} 39. Kf3 {[%emt 0:07:29]} Rxb2 {[%emt 0:00:36]} 40. Re6+ {[%emt 0:00:31]} Kf8 {[%emt 0:00:02]} 41. Nxh7+ {[%emt 0:00:18]} Kg8 {[%emt 0:01:32]} 42. Re7 {[%emt 0:00:14]} c4 {[%emt 0:00:18]} 43. e6 {[%emt 0:02:04]} Rxf2+ {[%emt 0:00:05]} 44. Kg4 {[%emt 0:00:48]} Rg2+ {[%emt 0:01:19]} 45. Kh4 {[%emt 0:00:30]} g5+ {[%emt 0:00:02]} 46. fxg5 {[%emt 0:00:22]} Ne5 {[%emt 0:00:03]} 47. Nf6+ {[%emt 0:00:14]} Kf8 {[%emt 0:00:06]} 48. Re8+ {[%emt 0:00:04]} 1-0

[Event "15th Governor Cup 2019"]
[Site "Khanty-Mansiysk"]
[Date "2019.11.22"]
[Round "6.5"]
[White "Savitskiy, Sergey"]
[Black "Frolyanov, Dmitry"]
[Result "1/2-1/2"]
[ECO "B31"]
[WhiteElo "2396"]
[BlackElo "2556"]
[Annotator "ChessBase"]
[PlyCount "30"]
[EventDate "2019.11.19"]
[EventType "swiss"]
[EventCountry "RUS"]
[SourceTitle "playchess.com"]
[Source "ChessBase"]
[SourceQuality "1"]
[TimeControl "5400+30"]

1. e4 {[%emt 0:00:00]} c5 {[%emt 0:00:00]} 2. Nf3 {[%emt 0:00:00]} Nc6 {[%emt 0:00:00]} 3. Bb5 {[%emt 0:00:00]} g6 {[%emt 0:00:00]} 4. O-O {[%emt 0:00:09]} Bg7 {[%emt 0:00:00]} 5. c3 {[%emt 0:00:31]} Nf6 {[%emt 0:03:44]} 6. Re1 {[%emt 0:00:09]} O-O {[%emt 0:00:30]} 7. d4 {[%emt 0:00:09]} cxd4 {[%emt 0:04:53]} 8. cxd4 {[%emt 0:00:36]} d5 {[%emt 0:01:57]} 9. e5 {[%emt 0:00:20]} Ne4 {[%emt 0:01:14]} 10. Bxc6 {[%emt 0:10:43]} bxc6 {[%emt 0:00:05]} 11. Nbd2 {[%emt 0:00:08]} Bf5 {[%emt 0:10:53]} 12. Nh4 {[%emt 0:03:17]} Be6 {[%emt 0:00:46]} 13. Nhf3 {[%emt 0:00:23]} Bf5 {[%emt 0:11:44]} 14. Nh4 {[%emt 0:02:40]} Be6 {[%emt 0:00:06]} 15. Nhf3 {[%emt 0:02:12]} Bf5 {[%emt 0:17:54]} 1/2-1/2